[Event "*** Titled Tuesday Blitz"]
[Site "Chess.com"]
[Date "2020.10.20"]
[Round "1"]
[White "Arfan48"]
[Black "Ermito2020"]
[Result "1-0"]
[WhiteElo "2353"]
[BlackElo "2634"]
[TimeControl "180+1"]
[EndTime "10:07:46 PDT"]
[Termination "Arfan48 won on time"]

1. e4 {[%clk 0:02:57.3]} 1... e6 {[%clk 0:02:59.7]} 2. Nf3 {[%clk 0:02:51.7]}
2... d5 {[%clk 0:03:00.1]} 3. Nc3 {[%clk 0:02:51.9]} 3... d4 {[%clk 0:03:00.3]}
4. Ne2 {[%clk 0:02:51.2]} 4... c5 {[%clk 0:03:00.4]} 5. c3 {[%clk 0:02:51.7]}
5... Nc6 {[%clk 0:02:55.1]} 6. cxd4 {[%clk 0:02:51.4]} 6... cxd4 {[%clk
0:02:55.5]} 7. Qa4 {[%clk 0:02:50.2]} 7... Bc5 {[%clk 0:02:24.8]} 8. b4 {[%clk
0:02:49.7]} 8... Bxb4 {[%clk 0:01:42]} 9. Nexd4 {[%clk 0:02:47.6]} 9... Ne7
{[%clk 0:01:42.5]} 10. Bb5 {[%clk 0:01:59.1]} 10... Ba5 {[%clk 0:01:27]} 11. Ba3
{[%clk 0:01:38]} 11... Bd7 {[%clk 0:01:13.7]} 12. Bxe7 {[%clk 0:01:20.1]} 12...
Kxe7 {[%clk 0:01:13.7]} 13. Bxc6 {[%clk 0:00:56.2]} 13... Bxc6 {[%clk
0:01:02.8]} 14. Nxc6+ {[%clk 0:00:54.9]} 14... bxc6 {[%clk 0:01:02.7]} 15. O-O
{[%clk 0:00:42.3]} 15... c5 {[%clk 0:00:44.6]} 16. Ne5 {[%clk 0:00:34.7]} 16...
Kf8 {[%clk 0:00:19.1]} 17. Rab1 {[%clk 0:00:24.1]} 17... Bb6 {[%clk 0:00:16.4]}
18. d3 {[%clk 0:00:13.4]} 18... Kg8 {[%clk 0:00:15.6]} 19. Qc4 {[%clk
0:00:12.5]} 19... h6 {[%clk 0:00:14]} 20. a4 {[%clk 0:00:12.4]} 20... Qd4 {[%clk
0:00:12.4]} 21. Qxd4 {[%clk 0:00:08.1]} 21... cxd4 {[%clk 0:00:13.3]} 22. Nc4
{[%clk 0:00:08.6]} 22... Bc5 {[%clk 0:00:13.3]} 23. Rb5 {[%clk 0:00:07.9]} 23...
Be7 {[%clk 0:00:12]} 24. Rb7 {[%clk 0:00:06.7]} 24... Bc5 {[%clk 0:00:11.9]} 25.
Rfb1 {[%clk 0:00:06.4]} 25... Rf8 {[%clk 0:00:10.7]} 26. Ne5 {[%clk 0:00:05.3]}
26... f6 {[%clk 0:00:09]} 27. Nd7 {[%clk 0:00:05.5]} 27... Rc8 {[%clk
0:00:09.1]} 28. Rb8 {[%clk 0:00:05.6]} 28... Kh7 {[%clk 0:00:07.8]} 29. Rxc8
{[%clk 0:00:05.6]} 29... Rxc8 {[%clk 0:00:08.7]} 30. Rc1 {[%clk 0:00:05.6]}
30... Rc7 {[%clk 0:00:02.7]} 31. Nxc5 {[%clk 0:00:05.7]} 31... e5 {[%clk
0:00:03.5]} 32. Nb3 {[%clk 0:00:04.6]} 32... Rb7 {[%clk 0:00:03.6]} 33. Na5
{[%clk 0:00:04.7]} 33... Rb4 {[%clk 0:00:03]} 34. Ra1 {[%clk 0:00:03.9]} 34...
Rb2 {[%clk 0:00:03.3]} 35. Nc4 {[%clk 0:00:04]} 35... Rb3 {[%clk 0:00:02.8]} 36.
Rd1 {[%clk 0:00:04.3]} 36... Rb4 {[%clk 0:00:02.9]} 37. a5 {[%clk 0:00:04.7]}
37... Ra4 {[%clk 0:00:03.2]} 38. g3 {[%clk 0:00:05.1]} 38... Ra2 {[%clk
0:00:03.3]} 39. Kg2 {[%clk 0:00:05.4]} 39... Kg6 {[%clk 0:00:03.9]} 40. h4
{[%clk 0:00:05.9]} 40... h5 {[%clk 0:00:04.4]} 41. Rb1 {[%clk 0:00:06.5]} 41...
Rc2 {[%clk 0:00:03]} 42. Rb7 {[%clk 0:00:07]} 42... Rc3 {[%clk 0:00:03.1]} 43.
Rxa7 {[%clk 0:00:07.2]} 43... Rxd3 {[%clk 0:00:03.1]} 44. Nd6 {[%clk 0:00:07.8]}
44... Ra3 {[%clk 0:00:02]} 45. Nf5 {[%clk 0:00:08]} 1-0

[Event "*** Titled Tuesday Blitz"]
[Site "Chess.com"]
[Date "2020.10.20"]
[Round "1"]
[White "Ranindu2003"]
[Black "HanSchut"]
[Result "1/2-1/2"]
[WhiteElo "2556"]
[BlackElo "2247"]
[TimeControl "180+1"]
[EndTime "10:07:47 PDT"]
[Termination "Game drawn by repetition"]

1. c4 {[%clk 0:02:58.5]} 1... Nf6 {[%clk 0:02:59.6]} 2. Nc3 {[%clk 0:02:57.9]}
2... d5 {[%clk 0:02:59.9]} 3. cxd5 {[%clk 0:02:53.8]} 3... Nxd5 {[%clk
0:03:00.8]} 4. e4 {[%clk 0:02:53.4]} 4... Nb6 {[%clk 0:02:50.7]} 5. d4 {[%clk
0:02:51.8]} 5... g6 {[%clk 0:02:48.2]} 6. Nf3 {[%clk 0:02:48.6]} 6... Bg7 {[%clk
0:02:48.3]} 7. Be2 {[%clk 0:02:45.6]} 7... O-O {[%clk 0:02:46.5]} 8. O-O {[%clk
0:02:44.4]} 8... Bg4 {[%clk 0:02:46.1]} 9. Be3 {[%clk 0:02:44]} 9... Bxf3 {[%clk
0:02:23.2]} 10. Bxf3 {[%clk 0:02:43]} 10... Nc4 {[%clk 0:02:23.5]} 11. Qe2
{[%clk 0:02:35]} 11... Nxe3 {[%clk 0:02:21.8]} 12. fxe3 {[%clk 0:02:35.6]} 12...
c5 {[%clk 0:02:09.4]} 13. dxc5 {[%clk 0:02:21.2]} 13... Nc6 {[%clk 0:02:01.4]}
14. Rfd1 {[%clk 0:02:06.6]} 14... Qa5 {[%clk 0:02:00.3]} 15. Nd5 {[%clk
0:01:59.8]} 15... e6 {[%clk 0:02:00.1]} 16. Nf4 {[%clk 0:01:52.3]} 16... Qxc5
{[%clk 0:01:50.8]} 17. Kh1 {[%clk 0:01:50]} 17... Rfd8 {[%clk 0:01:45.2]} 18.
Rac1 {[%clk 0:01:48.8]} 18... Qb6 {[%clk 0:01:43.1]} 19. b3 {[%clk 0:01:48.7]}
19... Rxd1+ {[%clk 0:01:35.6]} 20. Rxd1 {[%clk 0:01:49.6]} 20... Rd8 {[%clk
0:01:36.1]} 21. Rxd8+ {[%clk 0:01:45.3]} 21... Qxd8 {[%clk 0:01:36.9]} 22. Nd3
{[%clk 0:01:43.6]} 22... Ne5 {[%clk 0:01:32.2]} 23. Nxe5 {[%clk 0:01:42.3]}
23... Bxe5 {[%clk 0:01:33.1]} 24. Qc2 {[%clk 0:01:33.2]} 24... Qc7 {[%clk
0:01:32.4]} 25. Qxc7 {[%clk 0:01:31.9]} 25... Bxc7 {[%clk 0:01:33.3]} 26. Kg1
{[%clk 0:01:21.9]} 26... Kf8 {[%clk 0:01:30.5]} 27. h3 {[%clk 0:01:18.8]} 27...
Ke7 {[%clk 0:01:30]} 28. Kf2 {[%clk 0:01:19.3]} 28... Kd6 {[%clk 0:01:29.6]} 29.
Ke2 {[%clk 0:01:19.6]} 29... Kc5 {[%clk 0:01:29.7]} 30. a3 {[%clk 0:01:15.2]}
30... Be5 {[%clk 0:01:26.9]} 31. Kd3 {[%clk 0:01:12.2]} 31... Bb2 {[%clk
0:01:26]} 32. a4 {[%clk 0:01:12]} 32... Kb4 {[%clk 0:01:25.6]} 33. Bd1 {[%clk
0:01:11.8]} 33... Be5 {[%clk 0:01:22]} 34. g4 {[%clk 0:01:11.1]} 34... f6 {[%clk
0:01:18.9]} 35. h4 {[%clk 0:01:09.5]} 35... h6 {[%clk 0:01:18.2]} 36. h5 {[%clk
0:01:04]} 36... gxh5 {[%clk 0:01:12]} 37. gxh5 {[%clk 0:01:04.9]} 37... a6
{[%clk 0:01:08.7]} 38. Kc2 {[%clk 0:01:00.8]} 38... f5 {[%clk 0:01:00.4]} 39.
Bf3 {[%clk 0:00:43.8]} 39... b6 {[%clk 0:00:56.6]} 40. exf5 {[%clk 0:00:38.6]}
40... exf5 {[%clk 0:00:56.6]} 41. Bb7 {[%clk 0:00:39]} 41... a5 {[%clk
0:00:54.7]} 42. Bd5 {[%clk 0:00:33.9]} 42... f4 {[%clk 0:00:54.6]} 43. Kd3
{[%clk 0:00:33]} 43... fxe3 {[%clk 0:00:44.8]} 44. Kxe3 {[%clk 0:00:33.9]} 44...
Bf6 {[%clk 0:00:41.5]} 45. Ke4 {[%clk 0:00:33.9]} 45... Kc5 {[%clk 0:00:38.3]}
46. Bc4 {[%clk 0:00:33.8]} 46... Bg5 {[%clk 0:00:38.6]} 47. Kf5 {[%clk
0:00:33.8]} 47... Bc1 {[%clk 0:00:38.9]} 48. Ke6 {[%clk 0:00:33.5]} 48... Bd2
{[%clk 0:00:39.1]} 49. Kd7 {[%clk 0:00:33.7]} 49... Bc1 {[%clk 0:00:38.6]} 50.
Ke6 {[%clk 0:00:33]} 50... Bd2 {[%clk 0:00:39]} 51. Kf5 {[%clk 0:00:32.7]} 51...
Bc1 {[%clk 0:00:39.3]} 52. Ke4 {[%clk 0:00:33.2]} 52... Bd2 {[%clk 0:00:39.7]}
53. Kf3 {[%clk 0:00:33.5]} 53... Bc1 {[%clk 0:00:40.1]} 54. Ke2 {[%clk
0:00:34.4]} 54... Bg5 {[%clk 0:00:40.1]} 55. Kd1 {[%clk 0:00:34.1]} 55... Bf4
{[%clk 0:00:40.5]} 56. Kc2 {[%clk 0:00:33.4]} 56... Bg5 {[%clk 0:00:40.9]} 57.
Kc3 {[%clk 0:00:32.7]} 57... Bf4 {[%clk 0:00:40.2]} 58. Bb5 {[%clk 0:00:28.1]}
58... Bg5 {[%clk 0:00:39.9]} 59. Kd3 {[%clk 0:00:27.9]} 59... Bf4 {[%clk
0:00:39.9]} 60. Kc2 {[%clk 0:00:28.8]} 60... Bg5 {[%clk 0:00:40.4]} 61. Kd3
{[%clk 0:00:28.9]} 61... Bf4 {[%clk 0:00:40.9]} 62. Ke2 {[%clk 0:00:29.6]} 62...
Bg5 {[%clk 0:00:41.3]} 63. Kf3 {[%clk 0:00:30.5]} 63... Bc1 {[%clk 0:00:41.2]}
64. Ke2 {[%clk 0:00:28.6]} 64... Bg5 {[%clk 0:00:41]} 65. Kd1 {[%clk 0:00:29.4]}
65... Bf4 {[%clk 0:00:41.4]} 66. Ke2 {[%clk 0:00:29.3]} 66... Bg5 {[%clk
0:00:41.9]} 1/2-1/2

[Event "*** Titled Tuesday Blitz"]
[Site "Chess.com"]
[Date "2020.10.20"]
[Round "1"]
[White "Nara_Kh"]
[Black "TrimitziosP7"]
[Result "0-1"]
[WhiteElo "2382"]
[BlackElo "2774"]
[TimeControl "180+1"]
[EndTime "10:07:48 PDT"]
[Termination "TrimitziosP7 won by checkmate"]

1. e4 {[%clk 0:02:58.5]} 1... e5 {[%clk 0:02:59.6]} 2. Nf3 {[%clk 0:02:57.9]}
2... Nc6 {[%clk 0:02:58.5]} 3. Bb5 {[%clk 0:02:57.7]} 3... Nge7 {[%clk
0:02:56.6]} 4. O-O {[%clk 0:02:55.4]} 4... g6 {[%clk 0:02:55.6]} 5. c3 {[%clk
0:02:53.4]} 5... Bg7 {[%clk 0:02:54.1]} 6. d4 {[%clk 0:02:50.7]} 6... exd4
{[%clk 0:02:54.5]} 7. cxd4 {[%clk 0:02:48.4]} 7... d5 {[%clk 0:02:54.5]} 8. e5
{[%clk 0:02:46.3]} 8... O-O {[%clk 0:02:52.6]} 9. h3 {[%clk 0:02:45.1]} 9... a6
{[%clk 0:02:50.1]} 10. Ba4 {[%clk 0:02:38.4]} 10... Be6 {[%clk 0:02:45.5]} 11.
Nc3 {[%clk 0:02:27.9]} 11... Na5 {[%clk 0:02:37.1]} 12. Bg5 {[%clk 0:02:19.6]}
12... h6 {[%clk 0:02:30.9]} 13. Bf4 {[%clk 0:02:07.4]} 13... Nc4 {[%clk
0:02:25.5]} 14. Qc1 {[%clk 0:02:04.5]} 14... Kh7 {[%clk 0:02:24.5]} 15. Bc2
{[%clk 0:01:56.7]} 15... Bf5 {[%clk 0:02:14.7]} 16. b3 {[%clk 0:01:53.9]} 16...
Nb6 {[%clk 0:02:13.4]} 17. g4 {[%clk 0:01:34.4]} 17... Be6 {[%clk 0:02:01.8]}
18. Kg2 {[%clk 0:01:12.5]} 18... Rc8 {[%clk 0:00:54.8]} 19. Ne2 {[%clk
0:01:07.5]} 19... c5 {[%clk 0:00:51.8]} 20. Ng3 {[%clk 0:01:05.8]} 20... c4
{[%clk 0:00:46.5]} 21. Nh5 {[%clk 0:01:01]} 21... Ng8 {[%clk 0:00:44.8]} 22. Bg3
{[%clk 0:00:29.9]} 22... cxb3 {[%clk 0:00:38.4]} 23. axb3 {[%clk 0:00:29.5]}
23... Qc7 {[%clk 0:00:35.3]} 24. Ra2 {[%clk 0:00:27.2]} 24... Qe7 {[%clk
0:00:30.1]} 25. Bh4 {[%clk 0:00:25]} 25... Qb4 {[%clk 0:00:27.5]} 26. Nxg7
{[%clk 0:00:24.4]} 26... Kxg7 {[%clk 0:00:27]} 27. Qe3 {[%clk 0:00:22.8]} 27...
Rc3 {[%clk 0:00:23.2]} 28. Qd2 {[%clk 0:00:15]} 28... Rfc8 {[%clk 0:00:22.8]}
29. Rd1 {[%clk 0:00:10]} 29... Qb5 {[%clk 0:00:18.4]} 30. Bg3 {[%clk 0:00:08.5]}
30... Qc6 {[%clk 0:00:14]} 31. Bb1 {[%clk 0:00:08.8]} 31... Rxb3 {[%clk
0:00:13.2]} 32. Rc2 {[%clk 0:00:08.3]} 32... Nc4 {[%clk 0:00:13]} 33. Qc1 {[%clk
0:00:07.4]} 33... Qd7 {[%clk 0:00:12.4]} 34. Rc3 {[%clk 0:00:07.4]} 34... Rxc3
{[%clk 0:00:10.5]} 35. Qxc3 {[%clk 0:00:08.3]} 35... Nd6 {[%clk 0:00:08.1]} 36.
Qb3 {[%clk 0:00:07.1]} 36... Ne4 {[%clk 0:00:07.8]} 37. Bf4 {[%clk 0:00:06.3]}
37... Rc3 {[%clk 0:00:06.4]} 38. Qb6 {[%clk 0:00:06.4]} 38... Bxg4 {[%clk
0:00:05.9]} 39. hxg4 {[%clk 0:00:06]} 39... Qxg4+ {[%clk 0:00:06]} 40. Kf1
{[%clk 0:00:05.4]} 40... Qxf3 {[%clk 0:00:05.2]} 41. Bxe4 {[%clk 0:00:05.3]}
41... Qxd1+ {[%clk 0:00:04.5]} 42. Kg2 {[%clk 0:00:04.8]} 42... Qg4+ {[%clk
0:00:04.9]} 43. Bg3 {[%clk 0:00:04.4]} 43... Qxe4+ {[%clk 0:00:05.1]} 44. Kh2
{[%clk 0:00:04.9]} 44... Rc1 {[%clk 0:00:05.2]} 45. Qxb7 {[%clk 0:00:05.4]}
45... Rh1# {[%clk 0:00:04.4]} 0-1

[Event "*** Titled Tuesday Blitz"]
[Site "Chess.com"]
[Date "2020.10.20"]
[Round "1"]
[White "nitpicker"]
[Black "Philosopherrr"]
[Result "1/2-1/2"]
[WhiteElo "2303"]
[BlackElo "2615"]
[TimeControl "180+1"]
[EndTime "10:07:49 PDT"]
[Termination "Game drawn by repetition"]

1. d4 {[%clk 0:03:00]} 1... Nf6 {[%clk 0:02:59.8]} 2. c4 {[%clk 0:02:59.5]} 2...
e6 {[%clk 0:03:00.1]} 3. g3 {[%clk 0:02:57.9]} 3... c5 {[%clk 0:03:00]} 4. d5
{[%clk 0:02:57.2]} 4... exd5 {[%clk 0:03:00.2]} 5. cxd5 {[%clk 0:02:57.3]} 5...
d6 {[%clk 0:03:01.1]} 6. Nc3 {[%clk 0:02:56.3]} 6... g6 {[%clk 0:03:01.3]} 7.
Nf3 {[%clk 0:02:56.3]} 7... Bg7 {[%clk 0:03:00.4]} 8. Nd2 {[%clk 0:02:56.1]}
8... O-O {[%clk 0:02:59.2]} 9. Nc4 {[%clk 0:02:55.4]} 9... Qe7 {[%clk
0:02:38.3]} 10. Bf4 {[%clk 0:02:47.4]} 10... Ne8 {[%clk 0:02:34]} 11. Bg2 {[%clk
0:02:42.8]} 11... Nd7 {[%clk 0:02:33.9]} 12. O-O {[%clk 0:02:31.5]} 12... Ne5
{[%clk 0:02:29.6]} 13. Nxe5 {[%clk 0:02:31.2]} 13... Bxe5 {[%clk 0:02:29.2]} 14.
Bxe5 {[%clk 0:02:28.4]} 14... Qxe5 {[%clk 0:02:29.1]} 15. e4 {[%clk 0:02:22.5]}
15... Bd7 {[%clk 0:02:23.8]} 16. f4 {[%clk 0:02:17.9]} 16... Qe7 {[%clk
0:02:16.2]} 17. Re1 {[%clk 0:02:14.2]} 17... f6 {[%clk 0:02:16]} 18. a4 {[%clk
0:02:12.6]} 18... a6 {[%clk 0:02:14.1]} 19. Bf1 {[%clk 0:02:11.8]} 19... Rb8
{[%clk 0:02:13.6]} 20. a5 {[%clk 0:02:04.8]} 20... Kh8 {[%clk 0:02:05.1]} 21.
Bc4 {[%clk 0:02:00.1]} 21... Qg7 {[%clk 0:01:57.1]} 22. Qf3 {[%clk 0:01:54]}
22... Nc7 {[%clk 0:01:53.5]} 23. Qf1 {[%clk 0:01:41.2]} 23... g5 {[%clk
0:01:43.3]} 24. Kh1 {[%clk 0:01:29.2]} 24... Rbe8 {[%clk 0:01:39.8]} 25. Re3
{[%clk 0:01:23.2]} 25... f5 {[%clk 0:01:32.2]} 26. Rae1 {[%clk 0:01:10]} 26...
gxf4 {[%clk 0:01:23.4]} 27. Qxf4 {[%clk 0:01:01.9]} 27... Re5 {[%clk 0:01:22.8]}
28. exf5 {[%clk 0:00:54.8]} 28... Rfxf5 {[%clk 0:01:16.8]} 29. Qh4 {[%clk
0:00:53.4]} 29... Ne8 {[%clk 0:00:44.4]} 30. Rxe5 {[%clk 0:00:48.3]} 30... Rxe5
{[%clk 0:00:44.5]} 31. Rxe5 {[%clk 0:00:38.9]} 31... Qxe5 {[%clk 0:00:43.9]} 32.
Qe4 {[%clk 0:00:36.6]} 32... Qxe4+ {[%clk 0:00:37.7]} 33. Nxe4 {[%clk
0:00:36.6]} 33... Bf5 {[%clk 0:00:38.1]} 34. Ng5 {[%clk 0:00:34.3]} 34... Kg7
{[%clk 0:00:37.4]} 35. Kg1 {[%clk 0:00:32.1]} 35... Kf6 {[%clk 0:00:37]} 36. h4
{[%clk 0:00:27.1]} 36... h6 {[%clk 0:00:36.8]} 37. Nf3 {[%clk 0:00:25.3]} 37...
Nc7 {[%clk 0:00:37.1]} 38. Kf2 {[%clk 0:00:21.2]} 38... Be4 {[%clk 0:00:37.4]}
39. g4 {[%clk 0:00:16.2]} 39... Bxd5 {[%clk 0:00:36.7]} 40. g5+ {[%clk 0:00:16]}
40... hxg5 {[%clk 0:00:36.6]} 41. hxg5+ {[%clk 0:00:16.3]} 41... Ke6 {[%clk
0:00:34.6]} 42. Bd3 {[%clk 0:00:15.8]} 42... Bxf3 {[%clk 0:00:33.6]} 43. Kxf3
{[%clk 0:00:15.5]} 43... d5 {[%clk 0:00:34.2]} 44. Kf4 {[%clk 0:00:15.7]} 44...
c4 {[%clk 0:00:30.4]} 45. Bf5+ {[%clk 0:00:15.8]} 45... Ke7 {[%clk 0:00:28.8]}
46. Ke5 {[%clk 0:00:16.1]} 46... Nb5 {[%clk 0:00:17]} 47. Kxd5 {[%clk 0:00:14]}
47... c3 {[%clk 0:00:17.6]} 48. bxc3 {[%clk 0:00:13]} 48... Nxc3+ {[%clk
0:00:18.1]} 49. Kc5 {[%clk 0:00:13]} 49... Na4+ {[%clk 0:00:17.6]} 50. Kb4
{[%clk 0:00:11.7]} 50... Nb2 {[%clk 0:00:17.9]} 51. Kc5 {[%clk 0:00:11.6]} 51...
Na4+ {[%clk 0:00:17.9]} 52. Kb4 {[%clk 0:00:09.7]} 52... Nb2 {[%clk 0:00:18]}
53. Kc5 {[%clk 0:00:09.7]} 53... Na4+ {[%clk 0:00:16.2]} 1/2-1/2

[Event "*** Titled Tuesday Blitz"]
[Site "Chess.com"]
[Date "2020.10.20"]
[Round "1"]
[White "Carnivoras"]
[Black "Kaslask"]
[Result "1-0"]
[WhiteElo "2636"]
[BlackElo "2304"]
[TimeControl "180+1"]
[EndTime "10:07:50 PDT"]
[Termination "Carnivoras won on time"]

1. d4 {[%clk 0:02:59.7]} 1... Nf6 {[%clk 0:02:59.3]} 2. c4 {[%clk 0:03:00]} 2...
e6 {[%clk 0:02:58.9]} 3. Nc3 {[%clk 0:02:59.9]} 3... Bb4 {[%clk 0:02:57]} 4. Qc2
{[%clk 0:02:59.7]} 4... c5 {[%clk 0:02:52.6]} 5. dxc5 {[%clk 0:02:58.2]} 5...
Bxc5 {[%clk 0:02:45.1]} 6. Nf3 {[%clk 0:02:57.1]} 6... Qb6 {[%clk 0:02:43.1]} 7.
e3 {[%clk 0:02:55.4]} 7... Be7 {[%clk 0:02:37.1]} 8. Be2 {[%clk 0:02:54.4]} 8...
a6 {[%clk 0:02:36.6]} 9. O-O {[%clk 0:02:53.6]} 9... Qc7 {[%clk 0:02:36.5]} 10.
b3 {[%clk 0:02:53.3]} 10... b6 {[%clk 0:02:28.1]} 11. Bb2 {[%clk 0:02:53]} 11...
Bb7 {[%clk 0:02:27.8]} 12. h3 {[%clk 0:02:35]} 12... O-O {[%clk 0:02:26.9]} 13.
Rac1 {[%clk 0:02:30.6]} 13... d6 {[%clk 0:02:25.4]} 14. Rfd1 {[%clk 0:02:26.9]}
14... Nbd7 {[%clk 0:02:25.1]} 15. a3 {[%clk 0:02:03.5]} 15... Rac8 {[%clk
0:02:23.9]} 16. e4 {[%clk 0:01:22.5]} 16... Rfd8 {[%clk 0:02:18.1]} 17. b4
{[%clk 0:01:19.4]} 17... Qb8 {[%clk 0:02:15.2]} 18. Bd3 {[%clk 0:01:17.7]} 18...
Nf8 {[%clk 0:02:05.1]} 19. Qe2 {[%clk 0:01:16.7]} 19... Ng6 {[%clk 0:02:00.7]}
20. Qe3 {[%clk 0:01:14.5]} 20... Ba8 {[%clk 0:01:47.9]} 21. Na4 {[%clk
0:00:47.5]} 21... b5 {[%clk 0:01:35.1]} 22. Nb6 {[%clk 0:00:42.9]} 22... Rc6
{[%clk 0:01:14.2]} 23. Nxa8 {[%clk 0:00:42.7]} 23... Qxa8 {[%clk 0:01:12.6]} 24.
Nd4 {[%clk 0:00:42.6]} 24... Rcc8 {[%clk 0:01:07]} 25. cxb5 {[%clk 0:00:42.5]}
25... axb5 {[%clk 0:01:05.5]} 26. Nxb5 {[%clk 0:00:40.6]} 26... d5 {[%clk
0:00:57.3]} 27. e5 {[%clk 0:00:37.4]} 27... Nd7 {[%clk 0:00:53.8]} 28. Rxc8
{[%clk 0:00:30.1]} 28... Rxc8 {[%clk 0:00:53.6]} 29. Bxg6 {[%clk 0:00:29.9]}
29... hxg6 {[%clk 0:00:51.7]} 30. Rc1 {[%clk 0:00:30]} 30... Rxc1+ {[%clk
0:00:44.1]} 31. Qxc1 {[%clk 0:00:29.5]} 31... Qa6 {[%clk 0:00:40.8]} 32. a4
{[%clk 0:00:24.5]} 32... Qxa4 {[%clk 0:00:39]} 33. Qc6 {[%clk 0:00:18.3]} 33...
Nf8 {[%clk 0:00:35.6]} 34. Qb7 {[%clk 0:00:14.9]} 34... Qxb4 {[%clk 0:00:35.1]}
35. Bc3 {[%clk 0:00:14.4]} 35... Qb1+ {[%clk 0:00:34.5]} 36. Kh2 {[%clk
0:00:14.3]} 36... Bg5 {[%clk 0:00:34]} 37. Bd4 {[%clk 0:00:10.8]} 37... Qe4
{[%clk 0:00:30.8]} 38. Qc8 {[%clk 0:00:10]} 38... Bf4+ {[%clk 0:00:28.6]} 39. g3
{[%clk 0:00:09.8]} 39... Bxe5 {[%clk 0:00:28.4]} 40. Bc5 {[%clk 0:00:10.1]}
40... Bxg3+ {[%clk 0:00:19.6]} 41. Kxg3 {[%clk 0:00:09.2]} 41... Qe5+ {[%clk
0:00:18.4]} 42. Kg2 {[%clk 0:00:08.8]} 42... Qe4+ {[%clk 0:00:17.9]} 43. Kh2
{[%clk 0:00:07]} 43... Qf4+ {[%clk 0:00:17.4]} 44. Kg2 {[%clk 0:00:07.3]} 44...
Qe4+ {[%clk 0:00:17.4]} 45. f3 {[%clk 0:00:06.8]} 45... Qc2+ {[%clk 0:00:07.7]}
46. Kg3 {[%clk 0:00:06.3]} 46... Kh7 {[%clk 0:00:05.8]} 47. Qxf8 {[%clk
0:00:06.7]} 47... Qf5 {[%clk 0:00:01.1]} 48. Be3 {[%clk 0:00:05.1]} 1-0

[Event "*** Titled Tuesday Blitz"]
[Site "Chess.com"]
[Date "2020.10.20"]
[Round "1"]
[White "AungTZ"]
[Black "talman67"]
[Result "0-1"]
[WhiteElo "2147"]
[BlackElo "2511"]
[TimeControl "180+1"]
[EndTime "10:07:51 PDT"]
[Termination "talman67 won on time"]

1. e4 {[%clk 0:02:37.6]} 1... e5 {[%clk 0:02:58.6]} 2. Nf3 {[%clk 0:02:35.8]}
2... Nc6 {[%clk 0:02:58.1]} 3. d4 {[%clk 0:02:35.8]} 3... exd4 {[%clk
0:02:57.8]} 4. Nxd4 {[%clk 0:02:36.7]} 4... Nf6 {[%clk 0:02:57.5]} 5. Nc3 {[%clk
0:02:35.4]} 5... Bc5 {[%clk 0:02:55.3]} 6. Nb3 {[%clk 0:02:30.9]} 6... Bb6
{[%clk 0:02:54.8]} 7. a4 {[%clk 0:02:30.6]} 7... a5 {[%clk 0:02:50]} 8. Be2
{[%clk 0:02:23]} 8... h6 {[%clk 0:02:47.8]} 9. O-O {[%clk 0:02:22.3]} 9... O-O
{[%clk 0:02:46.4]} 10. Kh1 {[%clk 0:02:18.9]} 10... Re8 {[%clk 0:02:45.2]} 11.
f3 {[%clk 0:01:48.7]} 11... d6 {[%clk 0:02:41.5]} 12. Bf4 {[%clk 0:01:26.9]}
12... Ne5 {[%clk 0:02:39.2]} 13. Qd2 {[%clk 0:01:24.3]} 13... Ng6 {[%clk
0:02:34.1]} 14. Bg3 {[%clk 0:01:23.6]} 14... Be6 {[%clk 0:02:22.5]} 15. Nd4
{[%clk 0:01:22.3]} 15... d5 {[%clk 0:02:15.4]} 16. e5 {[%clk 0:01:09.8]} 16...
Nh5 {[%clk 0:02:08.9]} 17. f4 {[%clk 0:01:07.3]} 17... Nxg3+ {[%clk 0:02:03.3]}
18. hxg3 {[%clk 0:01:08.2]} 18... c5 {[%clk 0:01:49.3]} 19. Ndb5 {[%clk
0:01:00.8]} 19... Ne7 {[%clk 0:01:20.3]} 20. Nd6 {[%clk 0:00:49.1]} 20... Nf5
{[%clk 0:01:19.6]} 21. Nxf5 {[%clk 0:00:41.3]} 21... Bxf5 {[%clk 0:01:20.5]} 22.
Nxd5 {[%clk 0:00:31.8]} 22... Be4 {[%clk 0:00:54.9]} 23. Bf3 {[%clk 0:00:29.3]}
23... Bxd5 {[%clk 0:00:46.7]} 24. Qxd5 {[%clk 0:00:27.3]} 24... Rb8 {[%clk
0:00:36.5]} 25. Rad1 {[%clk 0:00:24.8]} 25... Qe7 {[%clk 0:00:23.6]} 26. Qd7
{[%clk 0:00:23.2]} 26... Qe6 {[%clk 0:00:20.5]} 27. Qxe6 {[%clk 0:00:20.4]}
27... Rxe6 {[%clk 0:00:21.4]} 28. Rd7 {[%clk 0:00:18.7]} 28... Rg6 {[%clk
0:00:19.3]} 29. Kh2 {[%clk 0:00:15.1]} 29... c4 {[%clk 0:00:18.9]} 30. Bd5
{[%clk 0:00:13.2]} 30... Rf8 {[%clk 0:00:18.7]} 31. f5 {[%clk 0:00:13.2]} 31...
Rg5 {[%clk 0:00:18.8]} 32. Kh3 {[%clk 0:00:11.4]} 32... Rh5+ {[%clk 0:00:12.9]}
33. Kg4 {[%clk 0:00:11]} 33... Rg5+ {[%clk 0:00:13.8]} 34. Kf4 {[%clk
0:00:10.7]} 34... Ba7 {[%clk 0:00:06]} 35. Rxb7 {[%clk 0:00:08.7]} 35... Bb8
{[%clk 0:00:05.7]} 36. Re1 {[%clk 0:00:07.2]} 36... Kh7 {[%clk 0:00:05.1]} 37.
Bxf7 {[%clk 0:00:05]} 37... Kh8 {[%clk 0:00:04.8]} 38. Be6 {[%clk 0:00:01.4]}
38... g6 {[%clk 0:00:04.7]} 39. g4 {[%clk 0:00:01]} 39... gxf5 {[%clk
0:00:03.5]} 0-1